[Event "8th Ali Ipek Tournament 2020"]
[Site "Ankara"]
[Date "2020.03.08"]
[Round "7.19"]
[White "Yenice, Yusuf Erkan"]
[Black "Sari, Engin"]
[Result "1-0"]
[ECO "B00"]
[WhiteElo "1514"]
[BlackElo "1457"]
[Annotator "NA RC"]
[PlyCount "135"]
[EventDate "2020.03.04"]
[EventType "swiss"]
[EventCountry "TUR"]
[SourceTitle "playchess.com"]
[Source "ChessBase"]
[SourceQuality "1"]
[TimeControl "5400+30"]

1. e4 {[%emt 0:00:30]} Nc6 {[%emt 0:00:30]} 2. Nf3 {[%emt 0:00:00]} f5 {[%emt 0:00:00]} 3. e5 {[%emt 0:03:00]} d6 {[%emt 0:00:00]} 4. Bb5 {[%emt 0:02:30]} dxe5 {[%emt 0:00:30]} 5. Bxc6+ {[%emt 0:01:30]} bxc6 {[%emt 0:00:30]} 6. Nxe5 {[%emt 0:00:00]} Qd5 {[%emt 0:01:30]} 7. Nf3 {[%emt 0:02:00]} Qe6+ {[%emt 0:02:30]} 8. Qe2 {[%emt 0:04:30]} Qxe2+ {[%emt 0:00:30]} 9. Kxe2 {[%emt 0:00:00]} g6 {[%emt 0:01:30]} 10. Re1 {[%emt 0:01:00]} Bg7 {[%emt 0:03:30]} 11. Kf1 {[%emt 0:00:00]} Nf6 {[%emt 0:14:30]} 12. d3 {[%emt 0:02:00]} Nd5 {[%emt 0:04:30]} 13. a3 {[%emt 0:04:30]} Rb8 {[%emt 0:03:30]} 14. c4 {[%emt 0:02:30]} Nb6 {[%emt 0:20:30]} 15. Nc3 {[%emt 0:08:30]} Nd7 {[%emt 0:05:30]} 16. Na4 {[%emt 0:09:30]} Rb3 {[%emt 0:04:30]} 17. Bg5 {[%emt 0:11:30]} e5 {[%emt 0:03:30]} 18. Rad1 {[%emt 0:01:30]} O-O {[%emt 0:00:30]} 19. Bc1 {[%emt 0:01:30]} Ba6 {[%emt 0:01:30]} 20. Kg1 {[%emt 0:02:30]} Rbb8 {[%emt 0:01:30]} 21. b4 {[%emt 0:02:30]} Rbe8 {[%emt 0:04:30]} 22. Bb2 {[%emt 0:07:30]} Bf6 {[%emt 0:00:00]} 23. Nd2 {[%emt 0:03:30]} Nb6 {[%emt 0:01:00]} 24. Nc5 {[%emt 0:00:30]} Bc8 {[%emt 0:00:30]} 25. a4 {[%emt 0:03:30]} Re7 {[%emt 0:02:30]} 26. a5 {[%emt 0:00:30]} Nd7 {[%emt 0:00:30]} 27. Ndb3 {[%emt 0:02:30]} Rfe8 {[%emt 0:01:30]} 28. f3 {[%emt 0:00:30]} Kf7 {[%emt 0:01:30]} 29. Re2 {[%emt 0:02:30]} h5 {[%emt 0:01:30]} 30. Rde1 {[%emt 0:01:30]} g5 {[%emt 0:00:30]} 31. Kf1 {[%emt 0:04:46]} Nf8 {[%emt 0:00:30]} 32. d4 {[%emt 0:03:07]} exd4 {[%emt 0:03:43]} 33. Bxd4 {[%emt 0:02:38]} Ne6 {[%emt 0:02:14]} 34. Bxf6 {[%emt 0:02:53]} Kxf6 {[%emt 0:00:13]} 35. g3 {[%emt 0:01:08]} Nxc5 {[%emt 0:04:35]} 36. Nxc5 {[%emt 0:00:34]} Rxe2 {[%emt 0:01:52]} 37. Rxe2 {[%emt 0:00:04]} Rxe2 {[%emt 0:00:20]} 38. Kxe2 {[%emt 0:00:30]} Ke5 {[%emt 0:00:00]} 39. Ke3 {[%emt 0:01:31]} f4+ {[%emt 0:01:42]} 40. gxf4+ {[%emt 0:01:26]} gxf4+ {[%emt 0:00:07]} 41. Kd3 {[%emt 0:00:47]} Bh3 {[%emt 0:02:25]} 42. Nb3 {[%emt 0:01:03]} Bf5+ {[%emt 0:02:58]} 43. Kc3 {[%emt 0:00:47]} Bd7 {[%emt 0:01:29]} 44. h4 {[%emt 0:00:16]} Bf5 {[%emt 0:00:38]} 45. Nc5 {[%emt 0:01:59]} Bh3 {[%emt 0:01:28]} 46. Nd3+ {[%emt 0:01:00]} Kf5 {[%emt 0:00:09]} 47. Kd4 {[%emt 0:00:06]} Bf1 {[%emt 0:00:16]} 48. Ne1 {[%emt 0:03:07]} Be2 {[%emt 0:00:16]} 49. Kc5 {[%emt 0:00:37]} Bf1 {[%emt 0:00:11]} 50. Kxc6 {[%emt 0:00:57]} Bxc4 {[%emt 0:00:06]} 51. Kxc7 {[%emt 0:00:19]} Ke5 {[%emt 0:00:15]} 52. Kb7 {[%emt 0:00:26]} a6 {[%emt 0:00:07]} 53. Kb6 {[%emt 0:01:27]} Be2 {[%emt 0:01:23]} 54. Kc5 {[%emt 0:00:10]} Bf1 {[%emt 0:02:15]} 55. Nc2 {[%emt 0:00:12]} Bh3 {[%emt 0:02:16]} 56. Nd4 {[%emt 0:01:08]} Bc8 {[%emt 0:00:46]} 57. b5 {[%emt 0:00:55]} axb5 {[%emt 0:00:46]} 58. Nxb5 {[%emt 0:00:30]} Bb7 {[%emt 0:00:00]} 59. Nd4 {[%emt 0:00:00]} Ba8 {[%emt 0:00:01]} 60. a6 {[%emt 0:00:05]} Kf6 {[%emt 0:00:21]} 61. Kd6 {[%emt 0:00:32]} Kg6 {[%emt 0:01:21]} 62. Nc6 {[%emt 0:00:17]} Kf6 {[%emt 0:00:00]} 63. Kc7 {[%emt 0:00:17]} Kf5 {[%emt 0:00:27]} 64. Kd6 {[%emt 0:01:01]} Kf6 {[%emt 0:00:11]} 65. Nd4 {[%emt 0:00:15]} Kg6 {[%emt 0:00:09]} 66. Ke5 {[%emt 0:00:30]} Kf7 {[%emt 0:00:14]} 67. Kxf4 {[%emt 0:00:18]} Kf6 {[%emt 0:00:02]} 68. Nb5 {[%emt 0:00:00]} 1-0

[Event "8th Ali Ipek Tournament 2020"]
[Site "Ankara"]
[Date "2020.03.08"]
[Round "7.20"]
[White "Soku, Mustafa Attila"]
[Black "Gokdogan, Alperen"]
[Result "0-1"]
[ECO "D35"]
[WhiteElo "1506"]
[BlackElo "1305"]
[Annotator "NA RC"]
[PlyCount "132"]
[EventDate "2020.03.04"]
[EventType "swiss"]
[EventCountry "TUR"]
[SourceTitle "playchess.com"]
[Source "ChessBase"]
[SourceQuality "1"]
[TimeControl "5400+30"]

1. d4 {[%emt 0:13:30]} d5 {[%emt 0:00:30]} 2. c4 {[%emt 0:00:30]} e6 {[%emt 0:00:30]} 3. Nc3 {[%emt 0:00:00]} Nf6 {[%emt 0:00:00]} 4. cxd5 {[%emt 0:00:00]} exd5 {[%emt 0:00:00]} 5. Bg5 {[%emt 0:00:00]} Be7 {[%emt 0:00:00]} 6. e3 {[%emt 0:00:00]} O-O {[%emt 0:00:00]} 7. Bd3 {[%emt 0:00:00]} h6 {[%emt 0:00:30]} 8. Bh4 {[%emt 0:00:00]} b6 {[%emt 0:02:30]} 9. Nge2 {[%emt 0:00:00]} Bb7 {[%emt 0:00:00]} 10. Rc1 {[%emt 0:00:00]} Nbd7 {[%emt 0:00:00]} 11. O-O {[%emt 0:01:30]} Rc8 {[%emt 0:01:30]} 12. Bg3 {[%emt 0:02:30]} Re8 {[%emt 0:08:30]} 13. a3 {[%emt 0:04:30]} a5 {[%emt 0:05:30]} 14. Nf4 {[%emt 0:06:30]} c6 {[%emt 0:11:30]} 15. Qe2 {[%emt 0:06:30]} Nf8 {[%emt 0:04:30]} 16. Bf5 {[%emt 0:08:30]} Ra8 {[%emt 0:02:30]} 17. Rfd1 {[%emt 0:06:30]} Bc8 {[%emt 0:01:30]} 18. Bb1 {[%emt 0:01:30]} Ne6 {[%emt 0:05:30]} 19. Qc2 {[%emt 0:07:30]} Nxf4 {[%emt 0:02:30]} 20. Bxf4 {[%emt 0:00:30]} Bb7 {[%emt 0:03:30]} 21. Na4 {[%emt 0:02:30]} b5 {[%emt 0:10:30]} 22. Nc5 {[%emt 0:01:30]} Bxc5 {[%emt 0:00:30]} 23. Qxc5 {[%emt 0:00:30]} Qe7 {[%emt 0:09:30]} 24. Bd6 {[%emt 0:06:30]} Qd7 {[%emt 0:00:30]} 25. Be5 {[%emt 0:00:30]} Qe7 {[%emt 0:06:30]} 26. Qc2 {[%emt 0:02:30]} g6 {[%emt 0:03:30]} 27. Qe2 {[%emt 0:01:30]} Nd7 {[%emt 0:01:30]} 28. Bf4 {[%emt 0:00:30]} Kg7 {[%emt 0:01:30]} 29. Qf3 {[%emt 0:03:30]} Qe6 {[%emt 0:05:22]} 30. g4 {[%emt 0:02:30]} Rac8 {[%emt 0:05:15]} 31. Qg3 {[%emt 0:00:30]} a4 {[%emt 0:02:36]} 32. h4 {[%emt 0:02:30]} Rh8 {[%emt 0:01:00]} 33. h5 {[%emt 0:02:55]} g5 {[%emt 0:00:12]} 34. Bf5 {[%emt 0:00:00]} gxf4 {[%emt 0:00:47]} 35. Bxe6 {[%emt 0:01:03]} fxg3 {[%emt 0:00:30]} 36. Bxd7 {[%emt 0:04:46]} gxf2+ {[%emt 0:00:00]} 37. Kxf2 {[%emt 0:00:21]} Rc7 {[%emt 0:00:07]} 38. Bf5 {[%emt 0:00:00]} Bc8 {[%emt 0:00:04]} 39. Bxc8 {[%emt 0:03:53]} Rhxc8 {[%emt 0:00:17]} 40. Rc5 {[%emt 0:00:00]} Kf6 {[%emt 0:01:31]} 41. Kg3 {[%emt 0:00:00]} Re7 {[%emt 0:01:07]} 42. Rf1+ {[%emt 0:00:06]} Kg7 {[%emt 0:00:01]} 43. Rc3 {[%emt 0:01:06]} Rec7 {[%emt 0:02:28]} 44. Rc5 {[%emt 0:01:05]} Re8 {[%emt 0:00:30]} 45. Rf3 {[%emt 0:00:00]} Re4 {[%emt 0:00:17]} 46. Kh3 {[%emt 0:00:24]} Re6 {[%emt 0:00:43]} 47. Kg3 {[%emt 0:00:30]} Re4 {[%emt 0:00:00]} 48. Rc3 {[%emt 0:00:00]} Re6 {[%emt 0:02:14]} 49. Rf4 {[%emt 0:00:19]} Rce7 {[%emt 0:00:11]} 50. Kf3 {[%emt 0:00:28]} Kf8 {[%emt 0:00:13]} 51. Rf5 {[%emt 0:00:52]} Kg7 {[%emt 0:00:27]} 52. Rf4 {[%emt 0:03:23]} Kf8 {[%emt 0:00:23]} 53. Kf2 {[%emt 0:00:35]} Ke8 {[%emt 0:00:58]} 54. Rf3 {[%emt 0:00:16]} Kd7 {[%emt 0:01:03]} 55. Rc1 {[%emt 0:00:09]} Ke8 {[%emt 0:01:44]} 56. Rg1 {[%emt 0:00:30]} Kf8 {[%emt 0:00:00]} 57. g5 {[%emt 0:00:14]} Kg7 {[%emt 0:00:00]} 58. g6 {[%emt 0:01:40]} fxg6 {[%emt 0:00:16]} 59. hxg6 {[%emt 0:01:11]} Rxg6 {[%emt 0:00:05]} 60. Rxg6+ {[%emt 0:02:33]} Kxg6 {[%emt 0:00:00]} 61. Ke2 {[%emt 0:00:03]} Re6 {[%emt 0:01:08]} 62. Kd3 {[%emt 0:00:13]} h5 {[%emt 0:00:00]} 63. Rg3+ {[%emt 0:00:29]} Kh6 {[%emt 0:00:08]} 64. Rg8 {[%emt 0:00:48]} h4 {[%emt 0:00:08]} 65. Rf8 {[%emt 0:00:32]} Kh5 {[%emt 0:00:17]} 66. Rf5+ {[%emt 0:00:33]} Kg4 {[%emt 0:00:04]} 0-1